bitfinex-derivatives/quotes_BTCF0:USTF0_20241203
["timestamp","ask_amount","ask_price","bid_price","bid_amount"]
[1733224863439,0.2732,94903.0,94895.0,0.0015804]
[1733224863440,0.052678,94899.0,94895.0,0.0015804]
[1733224863645,0.052678,94898.0,94895.0,0.0015804]
[1733224863849,0.052678,94898.0,94895.0,0.02265967]
[1733224864041,0.052679,94897.0,94896.0,0.007]
[1733224864441,0.052679,94897.0,94893.0,0.34553919]
[1733224864647,0.052679,94897.0,94895.0,0.011]
[1733224865351,0.2732,94903.0,94895.0,0.011]
[1733224865644,0.052677,94900.0,94899.0,0.25261908]
[1733224865843,0.1383,94902.0,94895.0,0.007]
[1733224865844,0.052679,94897.0,94896.0,0.004]
[1733224866348,0.053679,94897.0,94896.0,0.01]
[1733224866745,0.052679,94897.0,94896.0,0.004]
[1733224867043,0.052679,94897.0,94893.0,0.16164247]
[1733224867044,0.046679,94897.0,94893.0,0.16164247]
[1733224867342,0.190976,94902.0,94895.0,0.05268]
[1733224867543,0.052677,94901.0,94897.0,0.25251975]
[1733224867743,0.052677,94900.0,94898.0,0.25251975]
[1733224867949,0.052677,94900.0,94899.0,8.735e-05]
[1733224868345,0.052677,94900.0,94899.0,0.2526071]
[1733224868944,0.049678,94897.0,94896.0,0.006]
[1733224869143,0.049678,94897.0,94892.0,0.70743678]
[1733224869144,0.05268,94893.0,94892.0,0.00056]
[1733224869348,0.052684,94886.0,94885.0,0.0026]
[1733224869643,0.052687,94880.0,94879.0,0.0210837]
[1733224870047,0.1364,94885.0,94872.0,0.052691]
[1733224870351,0.1364,94885.0,94874.0,0.05269]
[1733224870846,0.047687,94879.0,94875.0,0.052689]
[1733224871049,0.044687,94879.0,94876.0,0.05279446]
[1733224871452,0.052685,94884.0,94878.0,0.3608]
[1733224871642,0.001,94885.0,94878.0,0.3608]
[1733224871842,0.001,94885.0,94878.0,0.38188896]
[1733224872044,0.052687,94880.0,94878.0,0.38188896]
[1733224872653,0.052687,94880.0,94878.0,0.38488896]
[1733224873046,0.001,94879.0,94878.0,0.33228064]
[1733224873537,0.001,94879.0,94878.0,0.38496864]
[1733224873742,0.0105,94893.0,94878.0,0.33528064]
[1733224873938,0.052679,94895.0,94883.0,0.18057883]
[1733224874150,0.052679,94895.0,94884.0,0.2746]
[1733224874753,0.0105,94898.0,94884.0,0.2746]
[1733224874754,0.0105,94898.0,94894.0,0.3608]
[1733224874943,0.052672,94907.0,94895.0,0.13644]
[1733224875142,0.37250001,94909.0,94895.0,0.26433383]
[1733224875340,0.37250001,94909.0,94895.0,0.31701183]
[1733224875547,0.052672,94906.0,94895.0,0.26433383]
[1733224875748,0.05425392,94905.0,94895.0,0.26433383]
[1733224875956,0.05425392,94905.0,94896.0,0.13644]
[1733224875957,0.001,94898.0,94896.0,0.13644]
[1733224876147,0.001,94898.0,94896.0,0.08383168]
[1733224877249,0.003,94898.0,94896.0,0.08383168]
[1733224877453,0.002,94898.0,94896.0,0.08383168]
[1733224877755,0.00258092,94905.0,94896.0,0.08383168]
[1733224877951,0.003,94898.0,94896.0,0.08383168]
[1733224878151,0.004,94898.0,94896.0,0.08383168]
[1733224879149,0.004,94898.0,94895.0,0.13632]
[1733224879854,0.001,94898.0,94895.0,0.13632]
[1733224881053,0.003,94898.0,94895.0,0.13632]
[1733224882257,0.003,94898.0,94895.0,0.08371168]
[1733224883759,0.002,94898.0,94895.0,0.08371168]
[1733224884457,0.052678,94896.0,94894.0,0.36803095]
[1733224884656,0.052678,94896.0,94895.0,0.13632]
[1733224885359,0.052678,94896.0,94895.0,0.08371168]
[1733224886263,0.052678,94896.0,94894.0,0.36803095]
[1733224887060,0.054678,94896.0,94894.0,0.36803095]
[1733224888154,0.054678,94896.0,94894.0,0.03025613]
[1733224888354,0.054678,94896.0,94892.0,0.11396781]
[1733224888560,0.052678,94895.0,94892.0,0.14322495]
[1733224888762,0.05268,94893.0,94892.0,0.14322495]
[1733224888964,0.05268,94893.0,94892.0,0.02925714]
[1733224889265,0.05268,94892.0,94891.0,0.02108282]
[1733224890658,0.052681,94890.0,94889.0,0.38989103]
[1733224890965,0.052681,94890.0,94889.0,0.02909103]
[1733224891162,0.3608,94894.0,94880.0,0.0026]
[1733224891366,0.3608,94894.0,94877.0,0.33188064]
[1733224891657,0.05268,94893.0,94877.0,0.36110732]
[1733224891864,0.3608,94894.0,94881.0,0.02108439]
[1733224892157,0.052686,94882.0,94881.0,0.02108439]
[1733224892363,0.051686,94882.0,94881.0,0.02108439]
[1733224893054,0.051686,94882.0,94881.0,0.02508439]
[1733224893454,0.050686,94882.0,94881.0,0.02108439]
[1733224893660,0.050686,94882.0,94881.0,0.02508439]
[1733224894164,0.050686,94882.0,94881.0,0.02608439]
[1733224894365,0.3608,94894.0,94877.0,0.33458339]
[1733224894366,0.052683,94888.0,94877.0,0.33458339]
[1733224894551,0.05268,94893.0,94883.0,0.052685]
[1733224894751,0.05268,94893.0,94886.0,0.3608]
[1733224894957,0.05268,94893.0,94887.0,0.1475]
[1733224896158,0.05268,94893.0,94887.0,0.1495]
[1733224896753,0.05268,94893.0,94887.0,0.46536323]
[1733224897262,0.05268,94893.0,94888.0,0.31586323]
[1733224897463,0.05268,94893.0,94888.0,0.26325491]
[1733224897659,0.05268,94893.0,94887.0,0.1495]
[1733224898862,0.05268,94893.0,94888.0,0.001]
[1733224899364,0.05268,94893.0,94887.0,0.1485]
[1733224899850,0.05268,94893.0,94887.0,0.1475]
[1733224900056,0.05268,94893.0,94888.0,0.001]
[1733224900363,0.052682,94889.0,94888.0,0.001]
[1733224900562,0.052682,94889.0,94887.0,0.09589168]
[1733224901560,0.052682,94889.0,94887.0,0.12578268]
[1733224902255,0.052682,94889.0,94888.0,0.01317763]
[1733224903158,0.052682,94888.0,94887.0,0.031891]
[1733224903556,0.052686,94880.0,94876.0,0.13642546]
[1733224903765,0.2904,94891.0,94876.0,0.13642546]
[1733224903961,0.052687,94880.0,94877.0,0.33464562]
[1733224904161,0.052687,94880.0,94878.0,0.47835788]
[1733224904461,0.2904,94891.0,94879.0,0.47835788]
[1733224904761,0.052686,94881.0,94880.0,0.12789383]
[1733224904970,0.052686,94881.0,94877.0,0.33464562]
[1733224905265,0.03150143,94881.0,94878.0,0.47763355]
[1733224905460,0.03150143,94881.0,94879.0,0.47765398]
[1733224905661,0.03150143,94881.0,94877.0,0.33464562]
[1733224905856,0.03150143,94881.0,94878.0,0.47781351]
[1733224905857,0.03050143,94881.0,94878.0,0.47781351]
[1733224906061,0.052686,94880.0,94879.0,0.47781351]
[1733224906666,0.052686,94880.0,94879.0,0.42520519]
[1733224906863,0.2904,94891.0,94879.0,0.42520519]
[1733224906864,0.052684,94885.0,94879.0,0.42520519]
[1733224907060,0.052684,94885.0,94878.0,0.001]
[1733224907268,0.052684,94885.0,94879.0,0.02108647]
[1733224909571,0.052684,94885.0,94878.0,0.02116515]
[1733224909873,0.3608,94892.0,94879.0,0.01317836]
[1733224910062,0.3608,94892.0,94878.0,0.02116515]
[1733224910063,0.3608,94892.0,94885.0,0.3608]
[1733224910976,0.052683,94887.0,94885.0,0.3608]
[1733224912671,0.052683,94887.0,94885.0,0.30819168]
[1733224912891,0.3608,94892.0,94885.0,0.30819168]
[1733224912892,0.052683,94886.0,94885.0,0.30819168]
[1733224914364,0.41348,94892.0,94885.0,0.30819168]
[1733224914561,0.05268,94891.0,94885.0,0.30819168]
[1733224914766,0.052681,94890.0,94886.0,0.1508]
[1733224914964,0.052681,94889.0,94886.0,0.1508]
[1733224915168,0.052682,94888.0,94886.0,0.1508]
[1733224915769,0.052682,94888.0,94886.0,0.09819168]
[1733224916676,0.052682,94887.0,94886.0,0.09819168]
[1733224918774,0.052682,94887.0,94886.0,0.04558336]
[1733224920782,0.052681,94889.0,94886.0,0.04558336]
[1733224921078,0.052682,94887.0,94886.0,0.04558336]
[1733224921671,0.052682,94887.0,94886.0,0.52726136]
[1733224921877,0.052682,94887.0,94886.0,0.47465304]
[1733224923170,0.05268,94892.0,94886.0,0.47465304]
[1733224923377,0.05268,94892.0,94885.0,0.36087468]
[1733224923579,0.05268,94892.0,94886.0,0.01317789]
[1733224923780,0.05268,94892.0,94887.0,0.01317789]
[1733224923978,0.05268,94892.0,94885.0,0.36087468]
[1733224924181,0.05268,94892.0,94886.0,0.01317789]
[1733224924380,0.3608,94890.0,94887.0,0.01317789]
[1733224924682,0.052684,94885.0,94883.0,0.1518]
[1733224924985,0.3608,94890.0,94879.0,0.02108601]
[1733224925200,0.3608,94890.0,94880.0,0.09717287]
[1733224925386,0.052686,94881.0,94880.0,0.08399425]
[1733224925577,0.052686,94881.0,94880.0,0.01317874]
[1733224925777,0.052683,94886.0,94880.0,0.01317874]
[1733224926084,0.1518,94889.0,94881.0,0.06586374]
[1733224926085,0.052681,94889.0,94881.0,0.06586374]
[1733224926284,0.052682,94888.0,94882.0,0.01317864]
[1733224926484,0.052683,94886.0,94883.0,0.01317861]
[1733224926680,0.052683,94886.0,94879.0,0.15728601]
[1733224926989,0.052683,94886.0,94880.0,0.01317859]
[1733224927291,0.052683,94886.0,94881.0,0.01317859]
[1733224927486,0.3608,94890.0,94885.0,0.052683]
[1733224927683,0.3608,94890.0,94881.0,0.052686]
[1733224927981,0.3608,94890.0,94883.0,0.23589168]
[1733224928183,0.052678,94895.0,94889.0,0.3608]
[1733224928376,0.052676,94898.0,94889.0,0.413481]
[1733224928878,0.052676,94898.0,94890.0,0.01317711]
[1733224929189,0.052676,94898.0,94889.0,0.413481]
[1733224929392,0.052676,94898.0,94890.0,0.01317697]
[1733224929686,0.052676,94898.0,94889.0,0.413481]
[1733224929885,0.052676,94898.0,94890.0,0.01317697]
[1733224930086,0.052676,94898.0,94889.0,0.413481]
[1733224930284,0.052676,94898.0,94890.0,0.01317696]
[1733224930480,0.36192001,94902.0,94899.0,0.052676]
[1733224930683,0.3608,94902.0,94896.0,0.1362]
[1733224930882,0.3608,94902.0,94896.0,0.08359168]
[1733224931276,0.3608,94902.0,94899.0,0.052677]
[1733224931983,0.3608,94902.0,94900.0,0.052677]
[1733224932180,0.002,94902.0,94896.0,0.08359168]
[1733224932595,0.007,94902.0,94896.0,0.08359168]
[1733224932888,0.007,94902.0,94897.0,0.052679]
[1733224933088,0.002,94902.0,94897.0,0.052679]
[1733224933288,0.008,94902.0,94897.0,0.052679]
[1733224933881,0.008,94902.0,94896.0,0.08359168]
[1733224934492,0.008,94902.0,94897.0,0.052679]
[1733224935093,0.007,94902.0,94897.0,0.052679]
[1733224935290,0.005,94902.0,94897.0,0.052679]
[1733224935691,0.004,94902.0,94897.0,0.052679]
[1733224935994,0.005,94902.0,94897.0,0.052679]
[1733224936991,0.005,94902.0,94896.0,0.08359168]
[1733224937686,0.005,94902.0,94897.0,0.052679]
[1733224938393,0.005,94902.0,94901.0,0.052675]
[1733224938891,0.1622,94914.0,94901.0,0.052675]
[1733224939194,0.1517,94914.0,94905.0,0.052673]
[1733224939392,0.1517,94914.0,94906.0,0.13604]
[1733224939993,0.1517,94914.0,94906.0,0.08343168]
[1733224940296,0.052669,94912.0,94906.0,0.08343168]
[1733224941986,0.006,94914.0,94906.0,0.11296997]
[1733224942190,0.006,94914.0,94912.0,0.052669]
[1733224942793,0.00158076,94915.0,94912.0,0.052669]
[1733224943199,0.00158076,94915.0,94907.0,0.3608]
[1733224944098,0.002,94914.0,94907.0,0.3608]
[1733224944285,0.002,94914.0,94912.0,0.052668]
[1733224944489,0.009,94914.0,94907.0,0.3608]
[1733224944689,0.009,94914.0,94913.0,0.052668]
[1733224945297,0.009,94914.0,94907.0,0.3608]
[1733224945298,0.3608,94923.0,94915.0,0.052667]
[1733224945489,0.3608,94923.0,94916.0,0.13604]
[1733224945790,0.3608,94923.0,94917.0,0.052667]
[1733224946192,0.3608,94923.0,94917.0,0.052665]
[1733224946394,0.3608,94923.0,94919.0,0.052664]
[1733224946797,0.3608,94923.0,94916.0,0.13604]
[1733224946798,0.202159,94930.0,94917.0,0.3608]
[1733224946989,0.1495,94930.0,94920.0,0.1679885]
[1733224947192,0.0001008,94931.0,94925.0,0.3608]
[1733224948097,0.0001008,94931.0,94930.0,0.052659]
[1733224948485,0.0091008,94931.0,94930.0,0.052659]
[1733224948684,0.0171008,94931.0,94930.0,0.052659]
[1733224949205,0.0171008,94931.0,94925.0,0.39078773]
[1733224949396,0.0111008,94931.0,94925.0,0.39078773]
[1733224949597,0.0071008,94931.0,94930.0,0.052659]
[1733224949891,0.0071008,94931.0,94930.0,0.136]
[1733224950597,0.0071008,94931.0,94930.0,0.188659]
[1733224950790,0.00158063,94933.0,94932.0,0.052658]
[1733224951396,0.00158063,94933.0,94931.0,0.1471]
[1733224951397,0.0105,94944.0,94931.0,0.2953]
[1733224951594,0.0105,94951.0,94943.0,0.3608]
[1733224951799,8.495e-05,94948.0,94944.0,0.052651]
[1733224952187,8.495e-05,94948.0,94943.0,0.3608]
[1733224952690,8.495e-05,94948.0,94945.0,0.05265]
[1733224953094,8.495e-05,94948.0,94947.0,0.05265]
[1733224953803,8.495e-05,94948.0,94947.0,0.18865]
[1733224953998,0.00908495,94948.0,94947.0,0.18865]
[1733224954504,0.00208495,94948.0,94947.0,0.18865]
[1733224954800,0.00508495,94948.0,94947.0,0.18865]
[1733224955003,0.00508495,94948.0,94947.0,0.136]
[1733224955203,0.00508495,94948.0,94947.0,0.08339168]
[1733224955598,0.00408495,94948.0,94947.0,0.08339168]
[1733224955800,0.00508495,94948.0,94947.0,0.08339168]
[1733224957305,0.00808495,94948.0,94947.0,0.08339168]
[1733224957698,0.00808495,94948.0,94947.0,0.13604068]
[1733224958005,0.00808495,94948.0,94947.0,0.13704068]
[1733224958006,0.01308495,94948.0,94947.0,0.13704068]
[1733224958302,0.01308495,94948.0,94947.0,0.08443236]
[1733224958498,0.01208495,94948.0,94947.0,0.08443236]
[1733224958709,0.004,94948.0,94947.0,0.08443236]
[1733224958894,0.008,94948.0,94947.0,0.08443236]
[1733224960204,0.004,94948.0,94947.0,0.08443236]
[1733224960399,0.008,94948.0,94947.0,0.08443236]
[1733224960600,0.10618077,94954.0,94950.0,0.052648]
[1733224960797,0.10618077,94954.0,94947.0,0.13696]
[1733224960798,9.798e-05,94955.0,94953.0,0.052647]
[1733224960998,9.798e-05,94955.0,94948.0,0.052649]
[1733224961697,0.005,94954.0,94947.0,0.13696]
[1733224961893,0.005,94954.0,94950.0,0.25239684]
[1733224962106,0.005,94954.0,94953.0,0.052646]
[1733224962495,0.00909798,94955.0,94954.0,0.052646]
[1733224963407,0.00909798,94955.0,94951.0,0.25239684]
[1733224963408,0.01309798,94955.0,94951.0,0.25239684]
[1733224963711,0.01309798,94955.0,94952.0,0.25239684]
[1733224964104,0.009,94954.0,94953.0,0.001]
[1733224964603,0.00509798,94955.0,94953.0,0.20078852]
[1733224964807,0.01409798,94955.0,94953.0,0.20078852]
[1733224965007,0.01409798,94955.0,94951.0,0.001]
[1733224965008,0.01309798,94955.0,94951.0,0.001]
[1733224965314,0.009,94954.0,94953.0,0.001]
[1733224967307,0.009,94954.0,94952.0,0.188608]
[1733224967608,0.01309798,94955.0,94953.0,0.001]
[1733224967910,0.01309798,94955.0,94952.0,0.13599968]
[1733224967911,0.001,94954.0,94952.0,0.13599968]
[1733224968212,0.007,94954.0,94952.0,0.13599968]
[1733224968601,0.005,94954.0,94952.0,0.13599968]
[1733224969110,0.36196,94959.0,94952.0,0.13599968]
[1733224969310,0.008,94954.0,94952.0,0.13699968]
[1733224969903,0.008,94954.0,94952.0,0.08435168]
[1733224970503,0.012,94954.0,94952.0,0.03174336]
[1733224970902,0.004,94954.0,94952.0,0.03074336]
[1733224971102,0.004,94954.0,94952.0,0.03174336]
[1733224971604,0.009,94954.0,94952.0,0.34723941]
[1733224972003,0.009,94954.0,94952.0,0.03174336]
[1733224972617,0.009,94954.0,94953.0,0.052646]
[1733224973202,0.414603,94959.0,94953.0,0.31549605]
[1733224973408,0.413443,94959.0,94954.0,0.31549605]
[1733224973616,0.413443,94959.0,94954.0,0.26288773]
[1733224973807,0.3608,94959.0,94954.0,0.26288773]
[1733224974003,0.052645,94956.0,94952.0,0.03174336]
[1733224974711,0.005,94954.0,94953.0,0.47259719]
[1733224975106,0.36392001,94959.0,94953.0,0.47259719]
[1733224975412,0.36392001,94959.0,94952.0,0.08339036]
[1733224975413,0.005,94956.0,94954.0,0.60839719]
[1733224975609,0.005,94956.0,94955.0,0.47259719]
[1733224975910,0.052644,94957.0,94955.0,0.47259719]
[1733224976108,0.052644,94957.0,94956.0,0.47259719]
[1733224976314,0.36192001,94959.0,94956.0,0.47259719]
[1733224976613,0.36192001,94959.0,94954.0,0.1358]
[1733224976614,0.413443,94959.0,94957.0,0.41998887]
[1733224976799,0.413443,94959.0,94954.0,0.51439526]
[1733224977107,0.002,94956.0,94954.0,0.1358]
[1733224977616,0.418603,94959.0,94954.0,0.1358]
[1733224977812,0.417443,94959.0,94954.0,0.1358]
[1733224978011,0.417443,94959.0,94954.0,0.1368]
[1733224978509,0.001,94956.0,94954.0,0.1368]
[1733224979415,0.002,94956.0,94954.0,0.1368]
[1733224979613,0.002,94956.0,94954.0,0.08419168]
[1733224980511,0.054645,94956.0,94954.0,0.08419168]
[1733224981108,0.002,94956.0,94954.0,0.08419168]
[1733224981313,0.052645,94955.0,94954.0,0.08419168]
[1733224981615,0.052645,94955.0,94954.0,0.08319168]
[1733224981816,0.052647,94952.0,94948.0,0.02919087]
[1733224982012,0.052647,94952.0,94949.0,0.14896944]
[1733224982209,0.052647,94951.0,94950.0,0.01316944]
[1733224982717,0.001,94956.0,94943.0,0.37277371]
[1733224982718,0.05165,94947.0,94943.0,0.37277371]
[1733224982920,0.003,94956.0,94943.0,0.37277371]
[1733224982921,0.052651,94945.0,94943.0,0.0303412]
[1733224983218,0.052655,94938.0,94937.0,0.08385762]
[1733224983410,0.052655,94938.0,94937.0,0.02107208]
[1733224983411,0.3608,94938.0,94937.0,0.02107208]
[1733224983606,0.052655,94937.0,94936.0,0.3791122]
[1733224983809,0.052655,94937.0,94933.0,0.03182906]
[1733224983810,0.052657,94934.0,94933.0,0.03182906]
[1733224984517,0.051657,94934.0,94933.0,0.03182906]
[1733224985818,0.052657,94933.0,94932.0,0.00043063]
[1733224986815,0.052657,94933.0,94932.0,0.00012062]
[1733224987719,0.056657,94933.0,94932.0,0.00012062]
[1733224988021,0.060657,94933.0,94932.0,0.00112062]
[1733224988815,0.060657,94933.0,94924.0,0.03034733]
[1733224989019,0.060657,94933.0,94921.0,0.1358]
[1733224989223,0.060657,94933.0,94921.0,0.2884]
[1733224989514,0.060657,94933.0,94925.0,0.052662]
[1733224989718,0.052658,94932.0,94926.0,0.00012702]
[1733224991514,0.052658,94932.0,94931.0,0.02107771]
[1733224991714,0.057658,94932.0,94923.0,0.02127114]
[1733224992114,0.005,94932.0,94924.0,0.13584]
[1733224992319,0.052652,94943.0,94931.0,0.052658]
[1733224992517,0.00158033,94952.0,94942.0,0.18895076]
[1733224992723,0.00158033,94952.0,94948.0,0.18894722]
[1733224993222,0.00158033,94952.0,94944.0,0.194851]
[1733224993223,0.00158033,94952.0,94950.0,0.18894722]
[1733224993523,0.00158033,94952.0,94944.0,0.194851]
[1733224993724,0.001,94949.0,94945.0,0.05265]
[1733224993913,0.001,94949.0,94947.0,0.052649]
[1733224994513,0.001,94952.0,94948.0,0.13584]
[1733224994919,0.001,94952.0,94948.0,0.08324441]
[1733224995820,0.002,94952.0,94948.0,0.08324441]
[1733224996026,0.001,94952.0,94948.0,0.08324441]
[1733224996819,0.002,94952.0,94948.0,0.08324441]
[1733224997224,0.001,94952.0,94948.0,0.08324441]
[1733224997725,0.001,94952.0,94951.0,0.052647]
[1733224997928,0.001,94952.0,94948.0,0.08324441]
[1733224998427,0.001,94952.0,94951.0,0.052647]
[1733224999324,0.002,94952.0,94951.0,0.052647]
[1733224999720,0.001,94952.0,94951.0,0.052647]
[1733225000531,0.002,94952.0,94951.0,0.052647]
[1733225001029,0.002,94952.0,94948.0,0.08324441]
[1733225001730,1.15704332,94950.0,94948.0,0.08324441]
[1733225001921,1.15704332,94950.0,94949.0,0.052649]
[1733225002329,0.1431,94972.0,94951.0,0.052647]
[1733225002520,0.1431,94972.0,94964.0,0.3608]
[1733225002935,0.36192001,94975.0,94968.0,0.052637]
[1733225003127,0.3608,94975.0,94968.0,0.052637]
[1733225003425,0.36087993,94975.0,94968.0,0.052637]
[1733225003928,0.36087993,94975.0,94964.0,0.3608]
[1733225004630,0.36087993,94975.0,94968.0,0.052637]
[1733225005723,0.36087993,94975.0,94964.0,0.3618]
[1733225005724,0.36087993,94975.0,94965.0,0.12778941]
[1733225005925,0.36087993,94975.0,94968.0,0.001]
[1733225005926,0.36587993,94975.0,94968.0,0.001]
[1733225006126,0.052636,94970.0,94968.0,0.001]
[1733225006933,0.052636,94970.0,94965.0,0.10648634]
[1733225007127,0.052634,94973.0,94965.0,0.10648634]
[1733225007332,0.052635,94972.0,94965.0,0.13548049]
[1733225007633,0.005,94970.0,94969.0,0.052637]
[1733225009424,0.36207994,94975.0,94973.0,0.052634]
[1733225009734,0.36207994,94975.0,94972.0,0.13564]
[1733225009735,0.36087993,94975.0,94972.0,0.13564]
[1733225009940,7.993e-05,94975.0,94974.0,0.36083841]
[1733225010439,0.00157987,94980.0,94979.0,0.052631]
[1733225011233,0.3608,94984.0,94983.0,0.052629]
[1733225011437,0.2933,94992.0,94983.0,0.3608]
[1733225011641,0.144,94992.0,94983.0,0.3608]
[1733225011934,0.144,94992.0,94988.0,0.052626]
[1733225012436,0.00011369,94994.0,94989.0,0.052625]
[1733225012636,0.00011369,94994.0,94991.0,0.052624]
[1733225012826,0.001,94992.0,94991.0,0.052625]
[1733225013135,0.001,94992.0,94983.0,0.3618]
[1733225013440,0.001,94992.0,94991.0,0.052625]
[1733225013829,0.008,94992.0,94991.0,0.001]
[1733225014138,0.008,94992.0,94991.0,0.053626]
[1733225015323,0.008,94992.0,94991.0,0.08417779]
[1733225016139,0.1,95000.0,94992.0,0.052624]
[1733225016634,0.1,95000.0,94993.0,0.052624]
[1733225016837,0.1,95000.0,94995.0,0.052625]
[1733225017232,0.1,95000.0,94991.0,0.03055179]
[1733225017537,0.1,95000.0,94992.0,0.052626]
[1733225018141,0.105,95000.0,94991.0,0.03055179]
[1733225018330,0.105,95000.0,94993.0,0.052626]
[1733225019130,0.105,95000.0,94993.0,0.03017418]
[1733225019333,0.105,95000.0,94993.0,0.052626]
[1733225019534,0.1,95000.0,94993.0,0.053626]
[1733225019742,0.105,95000.0,94993.0,0.053626]
[1733225019947,0.105,95000.0,94994.0,0.188225]
[1733225020138,0.105,95000.0,94994.0,0.1356]
[1733225021146,0.1,95000.0,94994.0,0.1366]
[1733225021447,0.105,95000.0,94994.0,0.1366]
[1733225022148,0.105,95000.0,94994.0,0.08400441]
[1733225022447,0.105,95000.0,94995.0,0.18699082]
[1733225022841,0.105,95000.0,94994.0,0.08400441]
[1733225024048,0.105,95000.0,94995.0,0.053623]
[1733225024247,0.1,95000.0,94995.0,0.053623]
[1733225024445,0.105,95000.0,94995.0,0.053623]
[1733225024641,0.105,95000.0,94995.0,0.052623]
[1733225025146,0.105,95000.0,94996.0,0.19904068]
[1733225025338,0.105,95000.0,94995.0,0.001]
[1733225025339,0.052622,94997.0,94995.0,0.001]
[1733225026043,0.052622,94996.0,94995.0,0.001]
[1733225026646,0.052622,94996.0,94995.0,0.03061107]
[1733225026833,0.052622,94996.0,94995.0,0.001]
[1733225027034,0.052622,94996.0,94991.0,0.07368738]
[1733225027237,0.052622,94996.0,94995.0,0.001]
[1733225027747,0.1,95000.0,94995.0,0.001]
[1733225027947,0.057623,94996.0,94995.0,0.02994428]
[1733225028148,0.052627,94989.0,94988.0,0.31304952]
[1733225028341,0.052627,94989.0,94988.0,0.48116783]
[1733225028537,0.19227315,94990.0,94988.0,0.48116783]
[1733225028738,0.052627,94989.0,94988.0,0.0289591]
[1733225029046,0.1399,94989.0,94979.0,0.1048686]
[1733225029236,0.052632,94981.0,94979.0,0.1048686]
[1733225029438,0.1424,94980.0,94979.0,0.05019844]
[1733225029648,0.1424,94980.0,94976.0,0.3608]
[1733225029949,0.052634,94977.0,94976.0,0.3608]
[1733225030142,0.052634,94977.0,94976.0,0.38186238]
[1733225030443,0.052634,94977.0,94976.0,0.41184685]
[1733225031235,0.052634,94977.0,94976.0,0.35925126]
[1733225032446,0.052634,94977.0,94976.0,0.02998447]
[1733225032647,0.052634,94977.0,94967.0,0.12774663]
[1733225032851,0.413435,94973.0,94967.0,0.12774663]
[1733225033049,0.413435,94973.0,94963.0,0.38186449]
[1733225033444,0.413435,94973.0,94963.0,0.43450549]
[1733225033640,0.413435,94973.0,94964.0,0.05264]
[1733225033840,0.413435,94973.0,94972.0,0.00257913]
[1733225034149,0.413435,94973.0,94972.0,0.0318015]
[1733225034348,0.052636,94971.0,94963.0,0.38186449]
[1733225034652,0.052637,94970.0,94967.0,0.052638]
[1733225034949,0.3608,94973.0,94967.0,0.052638]
[1733225035148,0.3608,94973.0,94963.0,0.38186449]
[1733225035447,0.052636,94972.0,94967.0,0.052639]
[1733225036044,0.051636,94972.0,94967.0,0.052639]
[1733225036750,0.3608,94973.0,94963.0,0.41493753]
[1733225037054,0.3608,94973.0,94968.0,0.052638]
[1733225037242,0.3608,94973.0,94968.0,4.241e-05]
[1733225037549,0.3608,94973.0,94967.0,0.002]
[1733225037748,0.3608,94973.0,94967.0,0.001]
[1733225038155,0.3608,94973.0,94968.0,0.052638]
[1733225038342,0.3608,94973.0,94968.0,0.053638]
[1733225039050,0.3608,94973.0,94968.0,0.052638]
[1733225039846,0.3608,94973.0,94972.0,0.052636]
[1733225040048,0.13548,94977.0,94976.0,0.052634]
[1733225040462,0.3608,94983.0,94982.0,0.05263]
[1733225040640,0.3608,94991.0,94980.0,0.3608]
[1733225040847,0.13548,94996.0,94981.0,0.12774663]
[1733225041146,0.2736,94999.0,94981.0,0.12774663]
[1733225041348,0.13548,94998.0,94990.0,0.052625]
[1733225041549,0.13548,94998.0,94994.0,0.052623]
[1733225041956,0.1366,94999.0,94998.0,0.052621]
[1733225043050,0.1386,94999.0,94998.0,0.052621]
[1733225043544,0.1386,94999.0,94989.0,0.12774663]
[1733225043849,0.1426,94999.0,94998.0,0.001]
[1733225044053,0.1426,94999.0,94998.0,0.053621]
[1733225044245,0.006,94999.0,94998.0,0.053621]
[1733225044652,0.1,95000.0,94999.0,0.052621]
[1733225044851,0.1,95000.0,94999.0,0.413421]
[1733225046364,0.1,95000.0,94999.0,0.3608]
[1733225046548,0.1,95000.0,94999.0,0.413421]
[1733225047148,0.1,95000.0,94999.0,0.414421]
[1733225047756,0.1,95000.0,94999.0,0.413421]
[1733225047967,0.101,95000.0,94999.0,0.413421]
[1733225050152,0.1,95000.0,94999.0,0.413421]
[1733225050362,0.101,95000.0,94999.0,0.413421]
[1733225051458,0.101,95000.0,94999.0,0.4135416]
[1733225051459,0.05622554,95000.0,94999.0,0.4135416]
[1733225052150,0.5072,95019.0,95015.0,0.052611]
[1733225052660,0.3608,95019.0,95009.0,0.48854663]
[1733225053054,0.3608,95019.0,95015.0,0.052612]
[1733225053452,0.00011425,95018.0,95015.0,0.052612]
[1733225053855,0.00011425,95018.0,95009.0,0.48914663]
[1733225054052,0.00011425,95018.0,95016.0,0.052612]
[1733225055059,0.00411425,95018.0,95016.0,0.052612]
[1733225055554,0.00411425,95018.0,95009.0,0.12874663]
[1733225055753,0.00411425,95018.0,95017.0,0.3608]
[1733225056649,0.00411425,95018.0,95017.0,0.413411]
[1733225056853,0.00611425,95018.0,95017.0,0.413411]
[1733225057259,0.1483788,95038.0,95030.0,0.052603]
[1733225057459,0.1483788,95038.0,95032.0,0.052602]
[1733225057662,0.0015788,95038.0,95032.0,0.052602]
[1733225057855,0.0015788,95038.0,95028.0,0.12774663]
[1733225058056,0.0015788,95038.0,95035.0,0.0526]
[1733225058359,0.00011857,95036.0,95030.0,0.052604]
[1733225058672,0.00011857,95036.0,95030.0,0.001]
[1733225058859,0.00011857,95036.0,95032.0,0.001]
[1733225059163,0.0105788,95038.0,95033.0,0.49624]
[1733225059359,0.009,95038.0,95037.0,0.052599]